[Event "5th EFE Metz Festival Amateur 2019"]
[Site "Metz"]
[Date "2019.07.25"]
[Round "3.1"]
[White "Pirverdiyev, Agil"]
[Black "Quesada Vera, Liordis"]
[Result "0-1"]
[ECO "B07"]
[WhiteElo "2406"]
[BlackElo "2386"]
[Annotator "NA"]
[PlyCount "59"]
[EventDate "2019.07.24"]
[EventType "tourn"]
[EventCountry "FRA"]
[SourceTitle "playchess.com"]
[Source "ChessBase"]
[SourceQuality "1"]
[TimeControl "5400+30"]

1. e4 {[%emt 0:00:00]} d6 {[%emt 0:00:07]} 2. d4 {[%emt 0:00:00]} Nf6 {[%emt 0:00:08]} 3. Nc3 {[%emt 0:00:15]} Nbd7 {[%emt 0:00:08]} 4. Nf3 {[%emt 0:00:17]} e5 {[%emt 0:00:14]} 5. Bc4 {[%emt 0:00:12]} Be7 {[%emt 0:02:31]} 6. O-O {[%emt 0:00:23]} O-O {[%emt 0:00:21]} 7. Re1 {[%emt 0:00:56]} c6 {[%emt 0:04:21]} 8. a4 {[%emt 0:01:03]} exd4 {[%emt 0:17:36] C41: Philidor Defence} (8... a5 9. h3 Nb6 10. Ba2 Nfd7 11. Be3 exd4 12. Bxd4 Nc5 13. Bxc5 dxc5 14. Qe2 Qd6 15. Rad1 Qg6 16. Ne5 Qg5 17. Nf3 Qg6 18. Ne5 Qg5 19. Nf3 Qg6 20. Ne5 Qg5 {½-½ (20) Fressinet,L (2650)-Ponomariov,R (2663) Germany 2019}) 9. Qxd4 {[%emt 0:14:01]} Ne5 {[%emt 0:10:57]} 10. Be2 {[%emt 0:13:21]} Nfg4 {[%emt 0:03:02]} 11. Nxe5 {[%emt 0:16:48]} dxe5 {[%emt 0:01:51]} 12. Qd1 $146 {[%emt 0:00:10]} ({Predecessor:} 12. Qxd8 Rxd8 13. Nd1 Nf6 14. f3 Be6 15. Ne3 Bc5 16. Kf1 {0-1 (55) Nomin Erdene,D (2303)-Kadric,D (2511) Novi Sad 2015}) 12... Qxd1 {[%emt 0:04:49]} 13. Nxd1 {[%emt 0:00:35]} Bc5 {[%emt 0:03:22]} 14. h3 {[%emt 0:01:37]} Nf6 {[%emt 0:00:22]} 15. Bc4 {[%emt 0:00:07]} Re8 {[%emt 0:01:50]} 16. Kf1 {[%emt 0:06:28]} Be6 {[%emt 0:04:46]} 17. Bxe6 {[%emt 0:00:35]} Rxe6 {[%emt 0:00:02]} 18. f3 {[%emt 0:00:15]} Rd8 {[%emt 0:09:05]} 19. Be3 {[%emt 0:00:38]} Nd7 {[%emt 0:02:10]} 20. a5 {[%emt 0:01:12]} Rd6 {[%emt 0:02:11]} 21. Ke2 {[%emt 0:04:48]} f6 {[%emt 0:04:53]} 22. c3 {[%emt 0:03:14]} Bxe3 {[%emt 0:03:03]} 23. Nxe3 {[%emt 0:00:08]} Nc5 {[%emt 0:00:17]} 24. Nc4 {[%emt 0:00:39]} R6d7 {[%emt 0:03:20]} 25. Red1 {[%emt 0:02:47]} Kf8 {[%emt 0:04:39]} 26. h4 {[%emt 0:02:33]} Ke7 {[%emt 0:01:23]} 27. g3 {[%emt 0:01:22]} Nb3 {[%emt 0:01:00]} 28. Rxd7+ $11 {[%emt 0:01:18]} Rxd7 {[%emt 0:00:03]} 29. Rd1 {[%emt 0:01:18]} Rxd1 {[%emt 0:01:33]} 30. Kxd1 0-1

[Event "5th EFE Metz Festival Amateur 2019"]
[Site "Metz"]
[Date "2019.07.25"]
[Round "3.3"]
[White "Le Goff, Ronan"]
[Black "Dutreuil, Raphael"]
[Result "1/2-1/2"]
[ECO "A49"]
[WhiteElo "2281"]
[BlackElo "2302"]
[Annotator "NA"]
[PlyCount "59"]
[EventDate "2019.07.24"]
[EventType "tourn"]
[EventCountry "FRA"]
[SourceTitle "playchess.com"]
[Source "ChessBase"]
[SourceQuality "1"]
[TimeControl "5400+30"]

1. d4 {[%emt 0:12:42]} Nf6 {[%emt 0:00:07]} 2. Nf3 {[%emt 0:00:07]} g6 {[%emt 0:01:17]} 3. g3 {[%emt 0:01:09]} Bg7 {[%emt 0:04:18]} 4. Bg2 {[%emt 0:00:37]} O-O {[%emt 0:00:33]} 5. O-O {[%emt 0:00:07]} c5 {[%emt 0:00:19]} 6. c3 {[%emt 0:00:27]} cxd4 {[%emt 0:00:48]} 7. cxd4 {[%emt 0:00:08]} d5 {[%emt 0:00:04]} 8. Nc3 {[%emt 0:00:15]} Nc6 {[%emt 0:00:05]} 9. Bf4 {[%emt 0:06:35]} Ne4 {[%emt 0:04:15]} 10. Rc1 {[%emt 0:02:40]} Be6 {[%emt 0:19:23]} 11. a3 {[%emt 0:12:48]} Rc8 12. Ne5 {[%emt 0:18:13]} Nxc3 {[%emt 0:13:00]} 13. Rxc3 {[%emt 0:08:20]} Nxe5 {[%emt 0:00:27]} 14. Rxc8 {[%emt 0:01:05]} Qxc8 {[%emt 0:00:06]} 15. Bxe5 {[%emt 0:00:26]} Bxe5 {[%emt 0:00:06]} 16. dxe5 {[%emt 0:00:09]} Qc4 {[%emt 0:00:12]} 17. Qd2 {[%emt 0:02:06]} Rc8 {[%emt 0:25:32]} 18. Rd1 {[%emt 0:06:24]} Kg7 {[%emt 0:00:21]} 19. h4 {[%emt 0:04:07]} Qc2 {[%emt 0:12:01]} 20. Bf3 {[%emt 0:02:57]} Qf5 {[%emt 0:06:16]} 21. Qd4 {[%emt 0:04:22]} Rc4 {[%emt 0:01:07]} 22. Qe3 {[%emt 0:03:17]} Qc2 {[%emt 0:04:53]} 23. Qd2 {[%emt 0:00:37]} b6 {[%emt 0:01:03]} 24. Qxc2 {[%emt 0:03:40]} Rxc2 {[%emt 0:00:04]} 25. Bxd5 {[%emt 0:00:18]} Bxd5 {[%emt 0:01:29]} 26. Rxd5 {[%emt 0:00:19]} Rxb2 {[%emt 0:01:46]} 27. Rd7 {[%emt 0:01:11]} Rxe2 {[%emt 0:00:46]} 28. Rxe7 {[%emt 0:00:06]} Kf8 {[%emt 0:01:09]} 29. Rxa7 {[%emt 0:00:08]} Rxe5 {[%emt 0:00:04]} 30. Rb7 {[%emt 0:00:53]} 1/2-1/2

[Event "5th EFE Metz Festival Amateur 2019"]
[Site "Metz"]
[Date "2019.07.25"]
[Round "3.4"]
[White "Huesmann, Thomas"]
[Black "Douriet Duany, Alexis"]
[Result "1-0"]
[ECO "E91"]
[WhiteElo "2143"]
[BlackElo "2247"]
[Annotator "NA"]
[PlyCount "146"]
[EventDate "2019.07.24"]
[EventType "tourn"]
[EventCountry "FRA"]
[SourceTitle "playchess.com"]
[Source "ChessBase"]
[SourceQuality "1"]
[TimeControl "5400+30"]

1. e4 {[%emt 0:00:00]} g6 {[%emt 0:00:00]} 2. d4 {[%emt 0:00:00]} Bg7 {[%emt 0:00:00]} 3. c4 {[%emt 0:00:00]} d6 {[%emt 0:00:00]} 4. Nc3 {[%emt 0:00:08]} Nf6 {[%emt 0:00:00]} 5. Be2 {[%emt 0:00:13]} O-O {[%emt 0:00:01]} 6. Nf3 {[%emt 0:00:09]} Bg4 {[%emt 0:00:07]} 7. O-O {[%emt 0:00:26]} Nfd7 {[%emt 0:00:07]} 8. Be3 {[%emt 0:04:10]} e5 {[%emt 0:00:05]} 9. dxe5 {[%emt 0:01:12]} dxe5 {[%emt 0:00:34]} 10. Bg5 {[%emt 0:04:57]} Qc8 {[%emt 0:02:25]} 11. Nd5 {[%emt 0:02:40]} Nc6 {[%emt 0:00:31]} 12. b4 {[%emt 0:02:45]} Bxf3 {[%emt 0:11:06]} 13. Bxf3 {[%emt 0:00:21]} Kh8 {[%emt 0:00:26]} 14. Ne7 {[%emt 0:05:20]} Nxe7 {[%emt 0:06:29]} 15. Bxe7 {[%emt 0:00:06]} Re8 {[%emt 0:00:04]} 16. Bg5 {[%emt 0:00:09]} Nf6 {[%emt 0:15:01]} 17. Qc2 {[%emt 0:08:06]} a5 {[%emt 0:01:29]} 18. a3 {[%emt 0:01:08]} Qe6 {[%emt 0:01:00]} 19. h3 {[%emt 0:01:39]} h5 {[%emt 0:02:30]} 20. c5 {[%emt 0:02:48]} Nh7 {[%emt 0:05:23]} 21. Be3 {[%emt 0:01:02]} Bf6 {[%emt 0:00:33]} 22. Be2 {[%emt 0:03:15]} Bg5 {[%emt 0:01:00]} 23. Bxg5 {[%emt 0:03:14]} Nxg5 {[%emt 0:00:42]} 24. bxa5 {[%emt 0:00:08]} Qc6 {[%emt 0:00:55]} 25. Rab1 {[%emt 0:07:39]} Re7 {[%emt 0:07:46]} 26. Rfe1 {[%emt 0:11:37]} Ne6 {[%emt 0:01:57]} 27. Bb5 {[%emt 0:02:35]} Qxc5 {[%emt 0:00:23]} 28. Qd2 {[%emt 0:07:28]} Kg7 {[%emt 0:08:38]} 29. Rec1 {[%emt 0:00:40]} Qd4 {[%emt 0:03:17]} 30. Qe1 {[%emt 0:02:08]} c6 {[%emt 0:00:39]} 31. Bf1 {[%emt 0:01:04]} Qa4 {[%emt 0:02:00]} 32. Qb4 {[%emt 0:02:37]} Qxb4 {[%emt 0:00:35]} 33. axb4 {[%emt 0:00:06]} Nd4 {[%emt 0:00:11]} 34. Bc4 {[%emt 0:01:31]} f5 {[%emt 0:00:54]} 35. exf5 {[%emt 0:00:48]} gxf5 {[%emt 0:00:11]} 36. Kf1 {[%emt 0:02:01]} Kf6 {[%emt 0:00:27]} 37. Rd1 {[%emt 0:00:46]} Rd7 {[%emt 0:01:02]} 38. Be2 {[%emt 0:01:27]} h4 {[%emt 0:00:21]} 39. Bc4 {[%emt 0:01:20]} c5 {[%emt 0:11:10]} 40. bxc5 {[%emt 0:00:39]} Rxa5 {[%emt 0:00:02]} 41. Rb6+ {[%emt 0:00:18]} Kg5 {[%emt 0:00:29]} 42. c6 {[%emt 0:04:40]} bxc6 {[%emt 0:02:06]} 43. Rxc6 {[%emt 0:00:06]} Nxc6 {[%emt 0:02:57]} 44. Rxd7 {[%emt 0:00:08]} Ra1+ {[%emt 0:00:04]} 45. Ke2 {[%emt 0:00:12]} Nd4+ {[%emt 0:00:53]} 46. Kd2 {[%emt 0:00:18]} Rb1 {[%emt 0:00:59]} 47. Kc3 {[%emt 0:04:01]} Rc1+ {[%emt 0:00:55]} 48. Kb4 {[%emt 0:00:42]} Rc2 {[%emt 0:01:43]} 49. f3 {[%emt 0:01:36]} Kf4 {[%emt 0:00:08]} 50. Rg7 {[%emt 0:00:29]} Ke3 {[%emt 0:01:27]} 51. Bd5 {[%emt 0:00:31]} Ne2 {[%emt 0:02:40]} 52. Rh7 {[%emt 0:02:26]} Nf4 {[%emt 0:00:26]} 53. Bb3 {[%emt 0:00:15]} Rxg2 {[%emt 0:00:32]} 54. Rxh4 {[%emt 0:00:07]} Rg3 {[%emt 0:02:38]} 55. Rh7 {[%emt 0:00:21]} Rxh3 {[%emt 0:00:06]} 56. Rf7 {[%emt 0:01:38]} Rxf3 {[%emt 0:00:31]} 57. Kc5 {[%emt 0:00:58]} e4 {[%emt 0:00:31]} 58. Kd6 {[%emt 0:00:47]} Nd3 {[%emt 0:00:48]} 59. Bd5 {[%emt 0:01:10]} Rf2 {[%emt 0:02:13]} 60. Re7 {[%emt 0:02:04]} Rd2 {[%emt 0:00:35]} 61. Bb7 {[%emt 0:00:49]} Nf4+ {[%emt 0:01:12]} 62. Kc5 {[%emt 0:00:22]} Rc2+ {[%emt 0:00:44]} 63. Kd6 {[%emt 0:00:14]} Rd2+ {[%emt 0:00:28]} 64. Kc5 {[%emt 0:00:07]} Ng2 {[%emt 0:00:43]} 65. Re5 {[%emt 0:00:55]} Kf4 {[%emt 0:00:29]} 66. Re8 {[%emt 0:00:12]} e3 {[%emt 0:00:47]} 67. Kc4 {[%emt 0:00:41]} Nh4 {[%emt 0:01:20]} 68. Kc3 {[%emt 0:00:19]} Rd7 {[%emt 0:00:34]} 69. Ba6 {[%emt 0:00:33]} Nf3 {[%emt 0:00:27]} 70. Rh8 {[%emt 0:01:37]} Kg3 {[%emt 0:01:05]} 71. Rg8+ {[%emt 0:00:18]} Kf2 {[%emt 0:00:21]} 72. Rf8 {[%emt 0:00:08]} Rd5 {[%emt 0:00:45]} 73. Kc4 {[%emt 0:02:38]} Ra5 {[%emt 0:00:43]} 1-0

[Event "5th EFE Metz Festival Amateur 2019"]
[Site "Metz"]
[Date "2019.07.25"]
[Round "3.5"]
[White "Ortega, Francois"]
[Black "Briet, Antoine"]
[Result "*"]
[ECO "B40"]
[WhiteElo "2215"]
[BlackElo "2219"]
[Annotator "NA"]
[PlyCount "24"]
[EventDate "2019.07.24"]
[EventType "tourn"]
[EventCountry "FRA"]
[SourceTitle "playchess.com"]
[Source "ChessBase"]
[SourceQuality "1"]
[TimeControl "5400+30"]

1. e4 {[%emt 0:00:00]} c5 {[%emt 0:00:00]} 2. Nf3 {[%emt 0:00:00]} e6 {[%emt 0:00:00]} 3. g3 {[%emt 0:01:04]} d5 {[%emt 0:00:00]} 4. exd5 {[%emt 0:00:15]} exd5 {[%emt 0:00:00]} 5. Bg2 {[%emt 0:00:21]} Nf6 {[%emt 0:00:07]} 6. O-O {[%emt 0:00:09]} Nc6 {[%emt 0:00:14]} 7. d4 {[%emt 0:00:39]} Bg4 {[%emt 0:01:45]} 8. Be3 {[%emt 0:06:11]} cxd4 {[%emt 0:03:07]} 9. Bxd4 {[%emt 0:00:22]} Be7 {[%emt 0:02:37]} 10. h3 {[%emt 0:00:52]} Bf5 {[%emt 0:00:44]} 11. Nbd2 {[%emt 0:03:29]} h6 {[%emt 0:01:38]} 12. c3 {[%emt 0:02:16]} Qd7 {[%emt 0:04:04]} *